[Event "44th Chess Olympiad Open 2022"]
[Site "Chennai"]
[Date "2022.07.30"]
[Round "2.1"]
[White "Sasikiran, Krishnan"]
[Black "Baltag, Iulian"]
[Result "1-0"]
[WhiteElo "2638"]
[BlackElo "2405"]
[Annotator "TA"]
[PlyCount "121"]
[EventDate "2022.??.??"]
[TimeControl "60"]

{[%evp 13,121,20,22,19,11,15,41,25,20,20,24,12,45,43,53,41,99,58,84,24,39,39,
45,35,55,55,49,25,52,37,56,55,54,50,72,75,79,35,31,33,34,31,70,37,45,40,87,45,
54,31,34,41,35,10,70,71,76,55,79,65,61,59,82,66,80,74,78,74,72,74,115,79,208,
134,167,172,174,177,168,176,175,168,231,184,230,212,212,212,308,292,295,297,
496,459,472,240,729,320,616,612,610,575,586,581,518,492,29972,29972,4778,1777]
} 1. d4 {[%emt 0:00:11]} Nf6 {[%emt 0:00:17]} 2. c4 {[%emt 0:00:24]} e6 {
[%emt 0:00:05]} 3. Nc3 {[%emt 0:00:20]} d5 {[%emt 0:00:31]} 4. cxd5 {[%emt 0:
00:00]} exd5 {[%emt 0:00:47]} 5. Bg5 {[%emt 0:00:29]} Nbd7 {[%emt 0:01:03]} 6.
e3 {[%emt 0:02:54]} c6 {[%emt 0:00:16]} 7. Bd3 {[%emt 0:01:58]} Be7 {[%emt 0:
00:00]} 8. h3 {[%emt 0:06:59] D35: Queen's Gambit Declined: Exchange Variation.
} Nf8 {[%emt 0:00:57]} (8... Ne4 {feels hotter.} 9. Bf4 Ndf6 10. Nf3 O-O) 9.
Nf3 {[%emt 0:06:08]} a5 {[%emt 0:01:02]} 10. Qc2 {[%emt 0:03:45] White is
slightly better.} (10. Ne5 {keeps more tension.} Ne6 11. f4 O-O 12. O-O) 10...
Ne6 {[%emt 0:07:41]} 11. Bh4 {[%emt 0:02:05]} g6 {[%emt 0:00:23] [#]} 12. a3
$146 {[%emt 0:05:22]} ({Predecessor:} 12. Ne5 Nd7 13. Bg3 Nxe5 14. dxe5 O-O 15.
O-O Nc5 16. Ne2 Qb6 17. b3 a4 18. Nd4 Nxd3 19. Qxd3 {0-1 (34) Aranaz Portugues,
J (2135)-Villasenor Rubio,E (2205) Linares 2016}) 12... Kf8 {[%emt 0:01:14]}
13. O-O {[%emt 0:03:27]} (13. g4 {with more complications.} Kg7 14. O-O-O Nd7
15. Bxe7 Qxe7 16. h4) 13... Kg7 {[%emt 0:00:15]} 14. Bg3 {[%emt 0:06:44]} (14.
Ne5 {looks sharper.} Nd7 15. Bxe7 Qxe7 16. f4) 14... Bd6 {[%emt 0:03:46]} (
14... Rf8 $14) 15. Bxd6 {[%emt 0:03:17] White is more active.} (15. Ne5 {
is interesting.} Nh5 16. Bh2 Qh4 17. Kh1) 15... Qxd6 {[%emt 0:00:05]} 16. Rab1
{[%emt 0:01:23]} ({Better is} 16. Rac1 $16) 16... c5 {[%emt 0:02:49]} 17. dxc5
{[%emt 0:06:36]} Nxc5 {[%emt 0:00:17]} 18. Rbd1 {[%emt 0:03:46]} Qb6 {[%emt 0:
00:00]} 19. Nd4 {[%emt 0:03:57]} Bd7 {[%emt 0:00:58]} 20. Be2 {[%emt 0:03:39]}
Rac8 {[%emt 0:01:17]} 21. Qb1 {[%emt 0:05:16]} Rhe8 {[%emt 0:01:49]} 22. Bf3 {
[%emt 0:01:39]} Re5 {[%emt 0:01:26]} 23. Rc1 {[%emt 0:07:58]} Rce8 {[%emt 0:00:
00]} 24. b4 {[%emt 0:01:40]} axb4 {[%emt 0:01:16]} 25. Qxb4 {[%emt 0:02:25]}
Qxb4 {[%emt 0:02:14]} 26. axb4 {[%emt 0:00:06]} Nd3 {[%emt 0:02:52][%csl Yb4,
Yc1]} 27. Rcd1 {[%emt 0:06:04][%cal Yc1d1,Yd1d2,Yd2a2,Ya2a7]} Nb2 {[%emt 0:02:
58]} 28. Rd2 {[%emt 0:01:06]} Nc4 {[%emt 0:00:20]} 29. Ra2 {[%emt 0:00:00]} Nd6
{[%emt 0:00:26]} (29... Rc8 $14) 30. Rc1 {[%emt 0:02:20]} Rc8 {[%emt 0:00:49]}
31. Nce2 {[%emt 0:07:06]} Rc4 {[%emt 0:01:01]} 32. Rxc4 {[%emt 0:01:02]} dxc4 {
[%emt 0:02:38]} 33. Ra7 {[%emt 0:02:13]} Nfe4 {[%emt 0:00:00]} (33... Bf5 $11)
34. Bxe4 $14 {[%emt 0:01:01]} Rxe4 {[%emt 0:00:15]} 35. Kf1 {[%emt 0:01:00]} (
35. Ra5 $5 {[%cal Ra5d5]} Re7 36. f3 $14) 35... h5 {[%emt 0:00:55]} 36. Nc3 {
[%emt 0:00:42]} (36. Ra5 $5 {[%cal Ra5d5]} Re7 37. Nf4 $11) 36... Re5 {[%emt 0:
00:25]} 37. h4 {[%emt 0:00:41]} Bf5 {[%emt 0:04:13]} 38. g3 {[%emt 0:00:43]}
Bd3+ {[%emt 0:01:45] [#]} 39. Ke1 $1 {[%emt 0:00:11]} Re8 {[%emt 0:03:56]} 40.
Kd2 {[%emt 0:00:17]} Rd8 {[%emt 0:01:44]} 41. Ra5 {[%emt 0:30:55]} Nf5 {
[%emt 0:37:45]} 42. Rd5 {[%emt 0:00:00]} Ra8 {[%emt 0:00:00] A mistake that
costs the game.} (42... Rxd5 $16 43. Nxd5 Nd6) 43. e4 {[%emt 0:00:00]} Ne7 {
[%emt 0:00:00]} 44. Rd7 {[%emt 0:00:00][%csl Yb7,Ye7]} Nc6 {[%emt 0:00:00]} 45.
b5 {[%emt 0:00:00]} Nxd4 {[%emt 0:00:00]} 46. Rxd4 $18 {[%emt 0:00:00] Endgame
KRB-KRN} Re8 {[%emt 0:00:00]} 47. f3 {[%emt 0:00:00]} Re7 {[%emt 0:00:00]} (
47... Kf8 {was called for.} 48. Rd7 Re7) 48. Rd6 {[%emt 0:00:00]} f5 {[%emt 0:
00:00]} (48... Kf8 $142 49. Nd5 Re8) 49. e5 {[%emt 0:01:07]} Rxe5 {[%emt 0:01:
35][%cal Yf5f4]} 50. Rd7+ {[%emt 0:00:06]} Kf8 {[%emt 0:00:24]} (50... Kf6 $142
51. Rxb7 Re8) 51. Rxb7 {[%emt 0:00:24] aiming for b6.} Ke8 {[%emt 0:02:06]} 52.
b6 {[%emt 0:02:35]} Re6 $2 {[%emt 0:00:00]} (52... Kd8 {was necessary.} 53. Rg7
Kc8 54. Rxg6 Kb7) 53. Na4 {[%emt 0:00:00]} Rd6 {[%emt 0:02:05] [#] White must
now prevent ...Be4+.} 54. Ke3 {[%emt 0:00:48] Prevents Be4.} (54. Rh7 $142)
54... c3 $2 {[%emt 0:07:34]} (54... Bc2) 55. Rc7 {[%emt 0:00:27]} (55. Rb8+
$142 Ke7 56. b7) 55... f4+ $2 {[%emt 0:04:34]} (55... Kd8 56. Nc5 (56. Nxc3
Rxb6 57. Rc5 Bf1 $14) 56... Ba6 57. Nxa6 Rxb6) 56. gxf4 {[%emt 0:00:29]
Threatens to win with b7.} Kd8 {[%emt 0:01:04]} 57. Rxc3 {[%emt 0:00:25]
Intending b7 and mate.} Ba6 {[%emt 0:00:00]} 58. Rb3 {[%emt 0:00:36] White
wants to mate with Nc5.} Kc8 {[%emt 0:00:00]} 59. Nc5 {[%emt 0:00:27]} Bf1 {
[%emt 0:00:39]} (59... Bb7 $18 60. Rb5 Rd8) 60. b7+ {[%emt 0:00:16]} Kb8 {
[%emt 0:00:08]} 61. Ra3 {[%emt 0:00:17] Weighted Error Value: White=0.22 
(precise) /Black=0.46} 1-0

[Event "44th Chess Olympiad Open 2022"]
[Site "Chennai"]
[Date "2022.07.30"]
[Round "2.1"]
[White "Schitco, Ivan"]
[Black "Harikrishna, Pentala"]
[Result "0-1"]
[WhiteElo "2490"]
[BlackElo "2720"]
[Annotator "TA"]
[PlyCount "76"]
[EventDate "2022.??.??"]
[TimeControl "60"]

{[%evp 10,76,-3,-25,33,32,22,45,35,32,32,32,39,18,14,15,15,10,18,0,0,-31,0,-16,
-23,-20,-8,0,0,-26,0,-14,-14,-42,-42,-48,-46,-66,-67,-55,-66,-85,-85,-79,-73,
-73,-68,-107,-114,-234,-235,-356,-305,-546,-545,-543,-543,-615,-615,-597,-585,
-585,-576,-5531,-5157,-29967,-29969,-6528,-1508]} 1. c4 {[%emt 0:00:05]} e5 {
[%emt 0:00:08]} 2. Nf3 {[%emt 0:00:13]} Nc6 {[%emt 0:01:35]} 3. d4 {[%emt 0:00:
00]} exd4 {[%emt 0:03:01]} 4. Nxd4 {[%emt 0:00:17]} Nf6 {[%emt 0:00:28]} 5. Nc3
{[%emt 0:00:18]} Bb4 {[%emt 0:01:04]} 6. g3 {[%emt 0:00:15]} d6 {[%emt 0:08:03]
6...Bxc3+ gains popularity. A28: English Opening: Four Knights Variation.} ({
Black should play} 6... Bxc3+ $11 7. bxc3 Ne5) 7. Nxc6 $14 {[%emt 0:01:47]}
Bxc3+ {[%emt 0:02:16]} 8. bxc3 {[%emt 0:00:07]} bxc6 {[%emt 0:00:02] White is
slightly better.} 9. Bg2 {[%emt 0:00:27]} Bd7 {[%emt 0:00:15] [#]} 10. c5 $146
{[%emt 0:00:15]} ({Predecessor:} 10. O-O O-O 11. c5 d5 12. c4 Re8 13. Bb2 Rb8
14. Qc2 Qe7 15. cxd5 cxd5 16. e3 {1-0 (50) Siegel,G (2429)-Landenbergue,C 
(2400) Switzerland 2001}) 10... d5 {[%emt 0:02:25]} 11. Qd4 {[%emt 0:09:54]}
O-O {[%emt 0:06:29]} 12. O-O {[%emt 0:05:07]} Re8 {[%emt 0:03:48]} 13. Re1 {
[%emt 0:03:28]} Rb8 {[%emt 0:01:01]} 14. f3 {[%emt 0:06:19]} Qe7 {[%emt 0:00:
00]} 15. a4 {[%emt 0:10:40]} Bc8 {[%emt 0:02:17]} 16. e4 {[%emt 0:19:52]} dxe4
{[%emt 0:18:56]} 17. Bg5 {[%emt 0:06:03][%cal Re1e4]} Qe5 {[%emt 0:07:58]} 18.
Qxe5 {[%emt 0:05:19]} Rxe5 {[%emt 0:00:13]} 19. Be3 {[%emt 0:00:23]} (19. Bf4
$5 {[%cal Rf4e5]} Rxc5 20. Reb1 $11) 19... Bf5 {[%emt 0:09:03]} 20. Bd4 {
[%emt 0:02:33]} Ree8 {[%emt 0:01:26]} 21. Bxf6 {[%emt 0:06:17]} exf3 {[%emt 0:
00:00]} 22. Bxf3 {[%emt 0:01:59]} gxf6 {[%emt 0:00:18][%cal Yg7f6,Yf6e5,Ye5e4]}
23. Bxc6 {[%emt 0:01:06]} Re5 {[%emt 0:00:15]} 24. Rxe5 {[%emt 0:00:00]} fxe5
$15 {[%emt 0:00:07] Endgame KRB-KRB} 25. Bd5 {[%emt 0:00:00][%cal Yg3g4]} Kg7 {
[%emt 0:05:01]} 26. Ra3 {[%emt 0:05:20]} Rd8 {[%emt 0:00:00]} 27. c4 {[%emt 0:
00:31]} Rb8 $1 {[%emt 0:00:08] Prevents Rb3.} 28. a5 {[%emt 0:02:05]} h5 {
[%emt 0:02:45]} 29. h4 {[%emt 0:01:05] [#]} (29. Rf3 $17 Bg6 30. Rf2) 29... e4
$1 $19 {[%emt 0:02:00]} 30. Kf2 {[%emt 0:00:39]} (30. c6 $142) 30... Kf6 {
[%emt 0:00:11]} 31. Ke3 $2 {[%emt 0:00:10] [#]} (31. Re3 Ke5 32. Re2) 31... Ke5
$1 {[%emt 0:00:18]} 32. Bxf7 {[%emt 0:00:25]} Bg4 {[%emt 0:00:00] ( -> ...Rb2)}
33. Bd5 {[%emt 0:00:49]} Rb2 {[%emt 0:00:44][%csl Gg4][%cal Rb2e2]} 34. Bxe4 {
[%emt 0:00:40]} Re2+ {[%emt 0:00:04]} 35. Kd3 {[%emt 0:00:00]} Rxe4 {[%emt 0:
00:03]} 36. Rb3 {[%emt 0:00:13]} Be2+ {[%emt 0:03:38]} 37. Kd2 {[%emt 0:00:10]}
Kd4 {[%emt 0:00:42]} 38. Rb7 {[%emt 0:00:39]} Bf3 {[%emt 0:00:32] Weighted
Error Value: White=0.74/Black=0.05 (flawless)} (38... Bd3 $142 39. Rb3 Re2+ 40.
Kc1 Rc2+ 41. Kd1 Ra2) 0-1

[Event "44th Chess Olympiad Open 2022"]
[Site "Chennai"]
[Date "2022.07.30"]
[Round "2.1"]
[White "Hamitevici, Vladimir"]
[Black "Narayanan.S.L"]
[Result "0-1"]
[WhiteElo "2473"]
[BlackElo "2659"]
[Annotator "TA"]
[PlyCount "78"]
[EventDate "2022.??.??"]
[TimeControl "60"]

{[%evp 11,78,0,-2,1,-5,-36,-18,-34,-8,0,4,-21,-18,-15,-17,-24,-28,-58,-4,-7,0,
9,39,35,25,25,42,0,0,0,0,-14,-10,-36,-25,-37,-37,-37,-27,-39,-28,-47,-22,-31,
-31,-47,-39,-43,-45,-60,-9,-156,-158,-165,-152,-172,-156,-194,-186,-257,-211,
-669,-679,-677,-691,-790,-770,-739,-714]} 1. d4 {[%emt 0:00:18]} Nf6 {[%emt 0:
00:00]} 2. c4 {[%emt 0:00:48]} e6 {[%emt 0:00:06]} 3. Nf3 {[%emt 0:01:36]} d5 {
[%emt 0:00:08][%cal Yd7d5,Yd5c4]} 4. g3 {[%emt 0:01:09]} dxc4 {[%emt 0:00:06]}
5. Bg2 {[%emt 0:05:34]} c6 {[%emt 0:00:09]} 6. O-O {[%emt 0:00:00]} b5 {
[%emt 0:00:16]} 7. a4 {[%emt 0:07:37] E04: Open Catalan: 5 Nf3.} Bb7 {[%emt 0:
00:45]} 8. b3 {[%emt 0:03:25]} (8. Ne5 $5 {[%cal Ra4b5]} Qc8 9. f4 $11) 8...
cxb3 {[%emt 0:00:08]} 9. Qxb3 {[%emt 0:01:27] The position is equal.} a6 {
[%emt 0:00:08]} 10. Rd1 {[%emt 0:07:27]} Nbd7 {[%emt 0:03:09] 10...Be7 might
become the main line.} 11. Bf4 {[%emt 0:13:17]} Be7 {[%emt 0:02:24]} 12. Nc3 {
[%emt 0:04:32]} O-O {[%emt 0:09:06]} 13. Ne5 {[%emt 0:06:28]} Nd5 {[%emt 0:00:
00] [#]} 14. Ne4 $146 {[%emt 0:12:28]} ({Predecessor:} 14. Rac1 Nxe5 15. Bxe5
Qb6 16. Ne4 Rac8 17. Nc5 Rfd8 18. a5 Qa7 19. h4 Nf6 20. Qc3 {1-0 (30) Ivanov,T
(1543)-Podolskyi,M (2047) Kiev 2021}) 14... Nxe5 {[%emt 0:08:16]} (14... Nxf4
$15 15. gxf4 Nxe5 16. fxe5 Rb8) 15. Bxe5 $11 {[%emt 0:00:10]} f6 {[%emt 0:00:
00]} 16. Bf4 {[%emt 0:00:39]} f5 {[%emt 0:15:37]} 17. Nc5 {[%emt 0:04:38]} Bxc5
{[%emt 0:00:07]} 18. dxc5 {[%emt 0:00:08]} Qf6 {[%emt 0:00:06]} 19. Rac1 {
[%emt 0:04:50] Against Nc3} Rf7 {[%emt 0:03:53]} 20. Bd6 {[%emt 0:03:40]} f4 {
[%emt 0:04:32]} 21. Bxd5 {[%emt 0:05:15]} exd5 {[%emt 0:00:07]} 22. Bxf4 {
[%emt 0:00:44][%cal Ye2e4]} Re8 {[%emt 0:00:08]} 23. axb5 {[%emt 0:07:43]} axb5
{[%emt 0:06:05]} 24. Be3 {[%emt 0:00:36]} Bc8 {[%emt 0:00:24]} 25. Rd4 {
[%emt 0:01:09]} Bf5 {[%emt 0:01:57]} 26. Rf4 {[%emt 0:01:22]} Qe6 {[%emt 0:00:
00]} 27. Re1 {[%emt 0:01:38]} Ra7 {[%emt 0:03:19]} 28. Bd4 {[%emt 0:00:46]} Ra4
{[%emt 0:03:19] [#] Hoping for ...g5.} 29. Qb2 {[%emt 0:00:21]} Re7 {[%emt 0:
00:00]} 30. h4 {[%emt 0:00:53]} h6 {[%emt 0:00:28]} ({Better is} 30... Bg6 $15)
31. h5 {[%emt 0:01:06]} (31. Ra1 $11 {keeps the balance.}) 31... Bg4 $36 {
[%emt 0:01:25][%cal Yf5g4,Yg4h5,Yh5g6] White is under strong pressure.} 32. f3
{[%emt 0:00:06]} Bxh5 {[%emt 0:00:13] aiming for ...Qh3.} 33. g4 {[%emt 0:01:
21]} Bg6 {[%emt 0:00:13]} 34. Kf2 {[%emt 0:00:15]} Rc4 {[%emt 0:00:00][%cal
Ya4c4,Yc4c2,Yc2c3] Strongly threatening ...Rc2.} 35. Qb3 {[%emt 0:00:49]} (35.
Kg3 {was worth a try.}) 35... Rc2 {[%emt 0:00:52][%cal Rc2e2] Chess con chili.}
36. Qe3 {[%emt 0:00:00] [#]} (36. Kg3) 36... Qd7 $1 $19 {[%emt 0:00:46] Black
is clearly winning.} 37. Qa3 {[%emt 0:00:05]} Qc7 {[%emt 0:00:50]} 38. Be3 {
[%emt 0:01:13]} Qe5 {[%emt 0:01:22]} 39. Qb3 {[%emt 0:00:00]} Rc3 {[%emt 0:00:
11] Weighted Error Value: White=0.37/Black=0.10 (very precise)} 0-1

[Event "44th Chess Olympiad Open 2022"]
[Site "Chennai"]
[Date "2022.07.30"]
[Round "2.2"]
[White "Caruana, Fabiano"]
[Black "Bachmann, Axel"]
[Result "1/2-1/2"]
[WhiteElo "2783"]
[BlackElo "2588"]
[Annotator "TA"]
[PlyCount "69"]
[EventDate "2022.??.??"]
[TimeControl "60"]

{[%evp 15,69,16,29,19,26,15,25,17,31,0,0,0,0,0,0,0,0,0,0,0,0,0,-2,-26,0,0,0,0,
0,-15,-16,-12,0,0,0,-6,0,0,0,0,-7,-7,-7,-19,0,0,0,0,0,0,0,0,0,0,0,0]} 1. e4 {
[%emt 0:00:03]} e5 {[%emt 0:00:07]} 2. Nf3 {[%emt 0:00:04]} Nc6 {[%emt 0:00:05]
} 3. Bb5 {[%emt 0:00:05]} Bc5 {[%emt 0:00:07]} 4. O-O {[%emt 0:01:12]} Nd4 {
[%emt 0:04:50]} 5. Nxd4 {[%emt 0:00:06]} Bxd4 {[%emt 0:00:04]} 6. c3 {[%emt 0:
00:00]} Bb6 {[%emt 0:00:06]} 7. d4 {[%emt 0:00:15]} c6 {[%emt 0:00:05]} 8. Ba4
{[%emt 0:06:14]} d6 {[%emt 0:00:11]} 9. Bc2 {[%emt 0:00:10] C64: Ruy Lopez:
Classical Defence (3...Bc5) except 4 0-0 Nf6.} Ne7 {[%emt 0:10:38] [#]} 10.
dxe5 $146 {[%emt 0:16:48]} (10. Nd2 {is interesting.} O-O 11. dxe5 dxe5 12. Qh5
) ({Predecessor:} 10. Nd2 Be6 11. dxe5 dxe5 12. Qh5 Ng6 13. Nf3 Qc7 14. Rd1 h6
15. Bb3 Qe7 16. Bxe6 Qxe6 {0-1 (76) Bronstein,O (2492)-Neverov,V (2440)
Budapest 2022}) 10... dxe5 {[%emt 0:00:51]} 11. Qxd8+ {[%emt 0:00:35] White
has an edge.} (11. Nd2 {seems wilder.} O-O 12. Qh5 Ng6 13. Nc4) 11... Bxd8 {
[%emt 0:00:08]} 12. Be3 {[%emt 0:00:03]} Bb6 {[%emt 0:07:19]} 13. Bxb6 {
[%emt 0:02:00]} axb6 {[%emt 0:00:06]} 14. Nd2 {[%emt 0:00:08]} Be6 {[%emt 0:00:
00] Prevents Nc4.} 15. Bb3 {[%emt 0:00:22]} Kd7 {[%emt 0:01:54]} 16. Nc4 {
[%emt 0:10:28]} Bxc4 {[%emt 0:01:23]} 17. Bxc4 {[%emt 0:00:04]} f6 {[%emt 0:00:
00]} 18. h4 {[%emt 0:12:08]} Nc8 {[%emt 0:03:01]} 19. Rad1+ {[%emt 0:03:45]}
Ke7 {[%emt 0:02:40]} 20. Bb3 {[%emt 0:00:10] The position is equal.} Rd8 {
[%emt 0:03:08]} 21. Rxd8 {[%emt 0:07:14]} Kxd8 $11 {[%emt 0:00:10] Endgame
KRB-KRN} 22. a4 {[%emt 0:01:01]} Nd6 {[%emt 0:00:49]} 23. f3 {[%emt 0:00:00]}
Ke7 {[%emt 0:00:11]} 24. Kf2 {[%emt 0:01:16]} c5 {[%emt 0:08:05][%cal Yc6c5,
Yc5c4]} 25. Rb1 {[%emt 0:11:09]} c4 {[%emt 0:18:15]} 26. Bd1 {[%emt 0:00:06]}
b5 {[%emt 0:00:05]} 27. axb5 {[%emt 0:00:03]} Nxb5 {[%emt 0:00:00]} 28. Be2 {
[%emt 0:00:05]} Nd6 {[%emt 0:00:05]} 29. b3 {[%emt 0:00:08]} b5 {[%emt 0:08:55]
} 30. bxc4 {[%emt 0:01:02]} bxc4 {[%emt 0:03:46]} 31. Rb4 {[%emt 0:00:04]} Ra2
{[%emt 0:00:56]} 32. Kf1 {[%emt 0:04:37]} Ra1+ {[%emt 0:00:00]} 33. Kf2 {
[%emt 0:00:04]} Ra2 {[%emt 0:00:05]} 34. Kf1 {[%emt 0:00:04]} Ra1+ {[%emt 0:12:
28]} 35. Kf2 {[%emt 0:00:08] An interesting draw. Weighted Error Value:
White=0.05 (flawless) /Black=0.04 (flawless)} 1/2-1/2

[Event "44th Chess Olympiad Open 2022"]
[Site "Chennai"]
[Date "2022.07.30"]
[Round "2.2"]
[White "Dominguez Perez, Leinier"]
[Black "Cubas, Jose Fernando"]
[Result "1-0"]
[WhiteElo "2754"]
[BlackElo "2451"]
[Annotator "TA"]
[PlyCount "61"]
[EventDate "2022.??.??"]
[TimeControl "60"]

{[%evp 11,61,22,25,33,40,44,47,42,42,34,30,32,37,37,46,52,76,86,66,53,123,125,
125,140,132,143,135,142,152,162,163,154,214,209,222,219,307,297,437,410,415,
401,418,420,411,403,516,511,552,538,669,656]} 1. e4 {[%emt 0:00:04]} c5 {
[%emt 0:00:40]} 2. Nf3 {[%emt 0:00:08][%cal Yg1f3,Yf3d4,Yd4b5,Yb5c3]} Nc6 {
[%emt 0:00:07]} 3. d4 {[%emt 0:00:21]} cxd4 {[%emt 0:00:05]} 4. Nxd4 {[%emt 0:
00:07]} e5 {[%emt 0:00:11]} 5. Nb5 {[%emt 0:00:08]} d6 {[%emt 0:00:09]} 6. c4 {
[%emt 0:01:51]} Be7 {[%emt 0:02:33] 6...Be6 is the modern continuation.} 7.
N5c3 {[%emt 0:02:38] B32: Sicilian: Löwenthal and Kalashnikov Variations.} Nf6
{[%emt 0:05:57]} 8. Na3 $5 {[%emt 0:00:22] Leaves trodden paths.} O-O {[%emt 0:
00:23]} 9. Nc2 {[%emt 0:00:12] White is slightly better.} Be6 {[%emt 0:02:05]}
10. Be2 {[%emt 0:00:10]} Rc8 {[%emt 0:00:50]} 11. O-O $1 {[%emt 0:01:17]} a6 {
[%emt 0:04:17]} 12. Be3 {[%emt 0:01:31]} Nd7 {[%emt 0:00:00]} 13. Qd2 {[%emt 0:
06:14] [#]} Nc5 $146 {[%emt 0:08:13]} ({Predecessor:} 13... f5 14. exf5 Bxf5
15. Nd5 Nf6 16. Bb6 Qd7 17. Nce3 Ne4 18. Qe1 Be6 19. Rd1 Bh4 {½-½ (40)
Cardoso Cardoso,J (2461)-Mateus Urbano,L (2316) Santa Clara 2022}) 14. b4 {
[%emt 0:03:32][%cal Yb2b4,Yb4b5]} Nd7 {[%emt 0:00:36]} 15. Nd5 {[%emt 0:03:11]}
f5 {[%emt 0:12:55] Black is on the road to losing.} ({Black should play} 15...
Qe8 $14) 16. exf5 $16 {[%emt 0:22:20]} Bxf5 {[%emt 0:00:00]} 17. b5 {[%emt 0:
03:16]} Ncb8 {[%emt 0:15:42]} 18. Ncb4 {[%emt 0:00:12] 0x0.
001f20a3f573dp-1022s more active pieces.} Nc5 {[%emt 0:04:13]} 19. f3 {[%emt 0:
10:24] Against Ne4} h6 {[%emt 0:22:47]} 20. Nxe7+ {[%emt 0:07:58]} Qxe7 {
[%emt 0:00:04]} 21. Rad1 {[%emt 0:00:06]} a5 {[%emt 0:04:39]} (21... Rcd8 $16 {
keeps fighting.} 22. f4 Ne4) 22. Nd5 $18 {[%emt 0:01:02]} Qd8 {[%emt 0:00:02]}
23. Nc3 {[%emt 0:02:03]} Ne6 {[%emt 0:06:18]} (23... Nbd7 $142 24. Qxd6 Qf6 25.
Qxf6 Nxf6) 24. Qd5 {[%emt 0:04:19]} ({Don't do} 24. Qxd6 Qxd6 25. Rxd6 Nd4 26.
Bxd4 exd4 $18) 24... Re8 {[%emt 0:03:13]} (24... Qe7 $142 25. Ne4 Bxe4 26. fxe4
Nd7 27. Qxb7 Rfe8) 25. Qxb7 {[%emt 0:06:28]} Nf4 {[%emt 0:02:02]} 26. Bxf4 {
[%emt 0:01:30]} exf4 {[%emt 0:00:03]} 27. Qd5+ {[%emt 0:00:15]} Be6 {[%emt 0:
00:00]} 28. Qd4 {[%emt 0:00:09]} Nd7 {[%emt 0:01:59]} 29. Ne4 {[%emt 0:00:16]
White is clearly winning.} Bf7 {[%emt 0:01:24]} 30. Rf2 {[%emt 0:01:41]} Re5 {
[%emt 0:00:49]} 31. Nxd6 {[%emt 0:00:24] Weighted Error Value: White=0.02 
(flawless) /Black=0.33} 1-0